[Event "Titled Tuesday Blitz April 25 Early 2023"]
[White "feuervogel1000000"]
[Black "Bronstein, Or"]
[BlackFideId "2815770"]
[WhiteElo "2436"]
[BlackElo "2356"]
[Result "1-0"]
[Round "07"]
[TimeControl "180+2"]
[Date "2023.04.25"]
[WhiteClock "0:00:23"]
[BlackClock "0:00:10"]

1. e4 {[%clk 0:03:00]}  c5 {[%clk 0:02:58]} 2. Nf3 {[%clk 0:03:00]}  d6 {[%clk 0:02:54]} 3. d4 {[%clk 0:02:59]}  cxd4 {[%clk 0:02:55]} 4. Nxd4 {[%clk 0:02:59]}  Nf6 {[%clk 0:02:52]} 5. Nc3 {[%clk 0:03:00]}  a6 {[%clk 0:02:48]} 6. a3 {[%clk 0:03:00]}  Nc6 {[%clk 0:02:41]} 7. Be2 {[%clk 0:02:55]}  e6 {[%clk 0:02:32]} 8. O-O {[%clk 0:02:54]}  Bd7 {[%clk 0:02:32]} 9. Be3 {[%clk 0:02:53]}  Be7 {[%clk 0:02:32]} 10. f4 {[%clk 0:02:52]}  Qc7 {[%clk 0:02:31]} 11. Kh1 {[%clk 0:02:39]}  b5 {[%clk 0:02:30]} 12. Qe1 {[%clk 0:02:39]}  h5 {[%clk 0:02:22]} 13. Nxc6 {[%clk 0:02:28]}  Bxc6 {[%clk 0:02:21]} 14. Bd3 {[%clk 0:02:29]}  h4 {[%clk 0:02:07]} 15. Bd4 {[%clk 0:01:46]}  h3 {[%clk 0:02:05]} 16. g4 {[%clk 0:01:46]}  e5 {[%clk 0:01:48]} 17. fxe5 {[%clk 0:01:46]}  dxe5 {[%clk 0:01:47]} 18. Qg3 {[%clk 0:01:47]}  Nxg4 {[%clk 0:01:25]} 19. Nd5 {[%clk 0:01:26]}  Qb7 {[%clk 0:00:50]} 20. Qxg4 {[%clk 0:00:55]}  exd4 {[%clk 0:00:49]} 21. Qxg7 {[%clk 0:00:54]}  O-O-O {[%clk 0:00:49]} 22. Rxf7 {[%clk 0:00:51]}  Rxd5 {[%clk 0:00:16]} 23. Rxe7 {[%clk 0:00:44]}  Rdd8 {[%clk 0:00:02]} 24. Rxb7 {[%clk 0:00:41]}  Bxb7 {[%clk 0:00:02]} 25. Rg1 {[%clk 0:00:38]}  Rde8 {[%clk 0:00:03]} 26. Qxd4 {[%clk 0:00:38]}  Kb8 {[%clk 0:00:03]} 27. Rg7 {[%clk 0:00:37]}  Ka8 {[%clk 0:00:04]} 28. Rxb7 {[%clk 0:00:28]}  Kxb7 {[%clk 0:00:04]} 29. e5 {[%clk 0:00:28]}  Rhf8 {[%clk 0:00:03]} 30. Qe4+ {[%clk 0:00:26]}  Kb6 {[%clk 0:00:03]} 31. Qe3+ {[%clk 0:00:26]}  Ka5 {[%clk 0:00:03]} 32. Qxh3 {[%clk 0:00:20]}  Rxe5 {[%clk 0:00:03]} 33. Qh4 {[%clk 0:00:18]}  Rf3 {[%clk 0:00:02]} 34. Qb4+ {[%clk 0:00:18]}  Kb6 {[%clk 0:00:03]} 35. Qd4+ {[%clk 0:00:18]}  Rc5 {[%clk 0:00:03]} 36. Qd6+ {[%clk 0:00:18]}  Rc6 {[%clk 0:00:03]} 37. Qxc6+ {[%clk 0:00:19]}  Kxc6 {[%clk 0:00:03]} 38. Be4+ {[%clk 0:00:20]}  Kc5 {[%clk 0:00:04]} 39. Bxf3 {[%clk 0:00:21]}  Kd4 {[%clk 0:00:05]} 40. h4 {[%clk 0:00:21]}  Ke3 {[%clk 0:00:05]} 41. h5 {[%clk 0:00:21]}  a5 {[%clk 0:00:06]} 42. h6 {[%clk 0:00:21]}  Kxf3 {[%clk 0:00:07]} 43. h7 {[%clk 0:00:22]}  Ke3 {[%clk 0:00:08]} 44. h8=Q {[%clk 0:00:22]}  Kd2 {[%clk 0:00:09]} 45. Qc3+ {[%clk 0:00:22]}  Kc1 {[%clk 0:00:10]} 46. Qxa5 {[%clk 0:00:23]} 1-0


[Site "https://www.chess.com"]

[Event "Titled Tuesday Blitz April 25 Early 2023"]
[White "Smiechu"]
[Black "Grigoriants, Sergey"]
[BlackFideId "4130804"]
[WhiteElo "2435"]
[BlackElo "2502"]
[Result "0-1"]
[Round "07"]
[TimeControl "180+2"]
[Date "2023.04.25"]
[WhiteClock "0:00:01"]
[BlackClock "0:00:16"]

1. e4 {[%clk 0:02:51]}  c5 {[%clk 0:02:58]} 2. Nf3 {[%clk 0:02:51]}  Nc6 {[%clk 0:02:58]} 3. d4 {[%clk 0:02:51]}  cxd4 {[%clk 0:02:58]} 4. Nxd4 {[%clk 0:02:52]}  Nf6 {[%clk 0:02:57]} 5. Nc3 {[%clk 0:02:52]}  d6 {[%clk 0:02:57]} 6. Bc4 {[%clk 0:02:51]}  e6 {[%clk 0:02:56]} 7. Be3 {[%clk 0:02:50]}  a6 {[%clk 0:02:57]} 8. Bb3 {[%clk 0:02:49]}  Qc7 {[%clk 0:02:56]} 9. Qe2 {[%clk 0:02:48]}  Na5 {[%clk 0:02:57]} 10. f3 {[%clk 0:02:44]}  b5 {[%clk 0:02:55]} 11. g4 {[%clk 0:02:31]}  Bb7 {[%clk 0:02:45]} 12. g5 {[%clk 0:02:31]}  Nd7 {[%clk 0:02:45]} 13. O-O-O {[%clk 0:02:22]}  Nc5 {[%clk 0:02:40]} 14. h4 {[%clk 0:02:11]}  Be7 {[%clk 0:02:35]} 15. h5 {[%clk 0:02:11]}  Rc8 {[%clk 0:02:11]} 16. g6 {[%clk 0:02:03]}  Naxb3+ {[%clk 0:01:57]} 17. axb3 {[%clk 0:01:58]}  b4 {[%clk 0:01:49]} 18. gxf7+ {[%clk 0:01:53]}  Kxf7 {[%clk 0:01:48]} 19. Na4 {[%clk 0:01:47]}  Nxa4 {[%clk 0:01:44]} 20. bxa4 {[%clk 0:01:47]}  Qc4 {[%clk 0:01:45]} 21. Qg2 {[%clk 0:01:26]}  Qa2 {[%clk 0:01:33]} 22. Qg4 {[%clk 0:01:24]}  Bf6 {[%clk 0:01:20]} 23. h6 {[%clk 0:00:48]}  g6 {[%clk 0:01:19]} 24. Qf4 {[%clk 0:00:41]}  Rhd8 {[%clk 0:01:11]} 25. Qg4 {[%clk 0:00:16]}  Re8 {[%clk 0:00:57]} 26. Qf4 {[%clk 0:00:16]}  b3 {[%clk 0:00:47]} 27. Kd2 {[%clk 0:00:05]}  e5 {[%clk 0:00:37]} 28. Qg4 {[%clk 0:00:05]}  exd4 {[%clk 0:00:38]} 29. Bf4 {[%clk 0:00:01]}  Rxc2+ {[%clk 0:00:36]} 30. Ke1 {[%clk 0:00:02]}  Qxb2 {[%clk 0:00:31]} 31. Bd2 {[%clk 0:00:02]}  Rxd2 {[%clk 0:00:24]} 32. Rxd2 {[%clk 0:00:02]}  Qc1+ {[%clk 0:00:24]} 33. Rd1 {[%clk 0:00:01]}  Qe3+ {[%clk 0:00:24]} 34. Kf1 {[%clk 0:00:02]}  b2 {[%clk 0:00:16]} 35. Qd7+ {[%clk 0:00:01]}  Re7 {[%clk 0:00:16]} 36. Qxd6 {[%clk 0:00:01]}  Qxf3+ {[%clk 0:00:16]} 0-1


[Site "https://www.chess.com"]

[Event "Titled Tuesday Blitz April 25 Early 2023"]
[White "Lenaerts, Lennert"]
[Black "Galchenko, Matvey"]
[WhiteFideId "211435"]
[BlackFideId "24175480"]
[WhiteElo "2334"]
[BlackElo "2423"]
[Result "0-1"]
[Round "07"]
[TimeControl "180+2"]
[Date "2023.04.25"]
[WhiteClock "0:01:52"]
[BlackClock "0:01:11"]

1. d4 {[%clk 0:03:00]}  Nf6 {[%clk 0:02:50]} 2. c4 {[%clk 0:03:01]}  c5 {[%clk 0:02:50]} 3. d5 {[%clk 0:03:01]}  e6 {[%clk 0:02:50]} 4. Nc3 {[%clk 0:03:01]}  exd5 {[%clk 0:02:51]} 5. cxd5 {[%clk 0:03:02]}  d6 {[%clk 0:02:52]} 6. Nf3 {[%clk 0:03:03]}  g6 {[%clk 0:02:52]} 7. Bf4 {[%clk 0:03:03]}  Bg7 {[%clk 0:02:53]} 8. Qa4+ {[%clk 0:03:03]}  Bd7 {[%clk 0:02:54]} 9. Qb3 {[%clk 0:03:03]}  b5 {[%clk 0:02:54]} 10. Bxd6 {[%clk 0:03:03]}  Qb6 {[%clk 0:02:55]} 11. Be5 {[%clk 0:03:03]}  O-O {[%clk 0:02:54]} 12. e3 {[%clk 0:03:02]}  c4 {[%clk 0:02:55]} 13. Qd1 {[%clk 0:03:00]}  b4 {[%clk 0:02:55]} 14. Nb1 {[%clk 0:02:59]}  Rc8 {[%clk 0:02:55]} 15. Be2 {[%clk 0:02:57]}  Qa5 {[%clk 0:02:49]} 16. Nbd2 {[%clk 0:02:52]}  Bb5 {[%clk 0:02:28]} 17. O-O {[%clk 0:02:49]}  Nbd7 {[%clk 0:02:28]} 18. Bd4 {[%clk 0:02:46]}  Qa6 {[%clk 0:02:04]} 19. e4 {[%clk 0:02:33]}  c3 {[%clk 0:02:01]} 20. bxc3 {[%clk 0:02:32]}  bxc3 {[%clk 0:02:02]} 21. Bxb5 {[%clk 0:02:33]}  Qxb5 {[%clk 0:02:02]} 22. Nb3 {[%clk 0:02:33]}  Nxe4 {[%clk 0:01:59]} 23. Bxg7 {[%clk 0:02:33]}  Kxg7 {[%clk 0:02:00]} 24. Qd4+ {[%clk 0:02:32]}  Ndf6 {[%clk 0:01:56]} 25. Rfe1 {[%clk 0:02:20]}  Rc4 {[%clk 0:01:56]} 26. Qe5 {[%clk 0:02:15]}  Qxd5 {[%clk 0:01:56]} 27. Rac1 {[%clk 0:02:09]}  Qxe5 {[%clk 0:01:53]} 28. Nxe5 {[%clk 0:02:10]}  Rc7 {[%clk 0:01:51]} 29. f3 {[%clk 0:02:07]}  Nd2 {[%clk 0:01:31]} 30. Rc2 {[%clk 0:02:03]}  Nxb3 {[%clk 0:01:31]} 31. axb3 {[%clk 0:02:04]}  Rb8 {[%clk 0:01:32]} 32. Rb1 {[%clk 0:01:56]}  Nd5 {[%clk 0:01:32]} 33. Kf2 {[%clk 0:01:54]}  Nb4 {[%clk 0:01:20]} 34. Re2 {[%clk 0:01:53]}  f6 {[%clk 0:01:14]} 35. Nc4 {[%clk 0:01:52]}  c2 {[%clk 0:01:12]} 36. Rc1 {[%clk 0:01:52]}  Nd3+ {[%clk 0:01:11]} 0-1


[Site "https://www.chess.com"]

[Event "Titled Tuesday Blitz April 25 Early 2023"]
[White "Shomoev, Anton"]
[Black "Arias, Juan Cruz"]
[WhiteFideId "4135148"]
[BlackFideId "118540"]
[WhiteElo "2451"]
[BlackElo "2243"]
[Result "1-0"]
[Round "07"]
[TimeControl "180+2"]
[Date "2023.04.25"]
[WhiteClock "0:00:32"]
[BlackClock "0:00:39"]

1. d4 {[%clk 0:03:00]}  d5 {[%clk 0:02:56]} 2. c4 {[%clk 0:03:00]}  e6 {[%clk 0:02:55]} 3. Nc3 {[%clk 0:03:01]}  Nf6 {[%clk 0:02:55]} 4. cxd5 {[%clk 0:03:01]}  exd5 {[%clk 0:02:55]} 5. Bg5 {[%clk 0:03:01]}  c6 {[%clk 0:02:55]} 6. e3 {[%clk 0:03:01]}  h6 {[%clk 0:02:54]} 7. Bh4 {[%clk 0:03:01]}  Be7 {[%clk 0:02:55]} 8. Bd3 {[%clk 0:03:01]}  O-O {[%clk 0:02:54]} 9. Nf3 {[%clk 0:03:01]}  Ne4 {[%clk 0:02:53]} 10. Bxe7 {[%clk 0:02:59]}  Qxe7 {[%clk 0:02:54]} 11. Qc2 {[%clk 0:02:50]}  Re8 {[%clk 0:02:53]} 12. Ne5 {[%clk 0:02:45]}  Nd7 {[%clk 0:02:35]} 13. Bxe4 {[%clk 0:02:41]}  dxe4 {[%clk 0:02:34]} 14. Nxd7 {[%clk 0:02:39]}  Bxd7 {[%clk 0:02:35]} 15. O-O {[%clk 0:02:38]}  Qg5 {[%clk 0:02:31]} 16. Ne2 {[%clk 0:02:21]}  h5 {[%clk 0:02:27]} 17. Nf4 {[%clk 0:02:06]}  Be6 {[%clk 0:02:21]} 18. Rfc1 {[%clk 0:02:01]}  Bd5 {[%clk 0:02:20]} 19. Nxd5 {[%clk 0:01:36]}  cxd5 {[%clk 0:02:17]} 20. Qb3 {[%clk 0:01:36]}  b6 {[%clk 0:02:08]} 21. Rc7 {[%clk 0:01:29]}  Rad8 {[%clk 0:01:53]} 22. Rac1 {[%clk 0:01:27]}  h4 {[%clk 0:01:48]} 23. h3 {[%clk 0:01:26]}  Rd6 {[%clk 0:01:43]} 24. Qb5 {[%clk 0:01:24]}  Ree6 {[%clk 0:01:40]} 25. Rxa7 {[%clk 0:01:21]}  Rg6 {[%clk 0:01:33]} 26. Qf1 {[%clk 0:01:21]}  Qf5 {[%clk 0:01:32]} 27. Ra8+ {[%clk 0:01:13]}  Kh7 {[%clk 0:01:30]} 28. Rcc8 {[%clk 0:01:10]}  Rh6 {[%clk 0:01:25]} 29. Rh8+ {[%clk 0:01:08]}  Kg6 {[%clk 0:01:25]} 30. Rxh6+ {[%clk 0:01:08]}  Kxh6 {[%clk 0:01:19]} 31. Rh8+ {[%clk 0:01:06]}  Kg5 {[%clk 0:01:18]} 32. Qc1 {[%clk 0:01:02]}  Rf6 {[%clk 0:01:12]} 33. Qc2 {[%clk 0:00:47]}  Qd7 {[%clk 0:01:12]} 34. Qe2 {[%clk 0:00:41]}  g6 {[%clk 0:01:11]} 35. Qe1 {[%clk 0:00:34]}  Rd6 {[%clk 0:00:39]} 36. f4+ {[%clk 0:00:32]}  exf3 {[%clk 0:00:39]} 37. Qxh4+ {[%clk 0:00:32]}  Kf5 {[%clk 0:00:39]} 38. Qf4+ {[%clk 0:00:32]}  Ke6 {[%clk 0:00:39]} 39. Qe5# {[%clk 0:00:32]} 1-0


[Site "https://www.chess.com"]

[Event "Titled Tuesday Blitz April 25 Early 2023"]
[White "Pakleza, Zbigniew"]
[Black "Dzagnidze, Nana"]
[WhiteFideId "1119290"]
[BlackFideId "13601903"]
[WhiteElo "2410"]
[BlackElo "2406"]
[Result "1-0"]
[Round "07"]
[TimeControl "180+2"]
[Date "2023.04.25"]
[WhiteClock "0:00:45"]
[BlackClock "0:00:16"]

1. d4 {[%clk 0:03:00]}  d5 {[%clk 0:02:58]} 2. Bf4 {[%clk 0:03:00]}  Bf5 {[%clk 0:02:57]} 3. c4 {[%clk 0:02:58]}  e6 {[%clk 0:02:56]} 4. Nc3 {[%clk 0:02:59]}  c6 {[%clk 0:02:53]} 5. e3 {[%clk 0:02:59]}  Nd7 {[%clk 0:02:51]} 6. Qb3 {[%clk 0:02:59]}  Qb6 {[%clk 0:02:48]} 7. Nf3 {[%clk 0:02:59]}  Ngf6 {[%clk 0:02:45]} 8. c5 {[%clk 0:03:00]}  Qxb3 {[%clk 0:02:45]} 9. axb3 {[%clk 0:03:00]}  a6 {[%clk 0:02:45]} 10. b4 {[%clk 0:03:01]}  Rc8 {[%clk 0:02:44]} 11. h3 {[%clk 0:03:00]}  Be7 {[%clk 0:02:38]} 12. Nd2 {[%clk 0:02:58]}  Bd8 {[%clk 0:02:29]} 13. Nb3 {[%clk 0:02:57]}  Bc7 {[%clk 0:02:26]} 14. Bxc7 {[%clk 0:02:54]}  Rxc7 {[%clk 0:02:26]} 15. b5 {[%clk 0:02:53]}  O-O {[%clk 0:02:04]} 16. b6 {[%clk 0:02:53]}  Rcc8 {[%clk 0:02:04]} 17. Na5 {[%clk 0:02:53]}  Rb8 {[%clk 0:02:01]} 18. b4 {[%clk 0:02:54]}  e5 {[%clk 0:02:00]} 19. Kd2 {[%clk 0:02:54]}  Ne4+ {[%clk 0:01:41]} 20. Nxe4 {[%clk 0:02:53]}  Bxe4 {[%clk 0:01:40]} 21. f3 {[%clk 0:02:47]}  Bg6 {[%clk 0:01:40]} 22. Bxa6 {[%clk 0:02:36]}  bxa6 {[%clk 0:01:36]} 23. Nxc6 {[%clk 0:02:36]}  Rbe8 {[%clk 0:01:36]} 24. Rxa6 {[%clk 0:02:29]}  f6 {[%clk 0:01:36]} 25. Ra7 {[%clk 0:02:14]}  Nb8 {[%clk 0:00:50]} 26. b5 {[%clk 0:01:32]}  Rf7 {[%clk 0:00:36]} 27. Rha1 {[%clk 0:01:11]}  Bf5 {[%clk 0:00:19]} 28. Ra8 {[%clk 0:01:00]}  Rff8 {[%clk 0:00:18]} 29. Rxb8 {[%clk 0:00:48]}  Rxb8 {[%clk 0:00:18]} 30. Ne7+ {[%clk 0:00:49]}  Kf7 {[%clk 0:00:19]} 31. Nxf5 {[%clk 0:00:50]}  g6 {[%clk 0:00:16]} 32. Ra7+ {[%clk 0:00:45]} 1-0


[Site "https://www.chess.com"]

[Event "Titled Tuesday Blitz April 25 Early 2023"]
[White "Lehtosaari, Mauri"]
[Black "Halkias, Stelios"]
[WhiteFideId "501999"]
[BlackFideId "4201809"]
[WhiteElo "2534"]
[BlackElo "2451"]
[Result "0-1"]
[Round "07"]
[TimeControl "180+2"]
[Date "2023.04.25"]
[WhiteClock "0:00:01"]
[BlackClock "0:00:10"]

1. d4 {[%clk 0:03:00]}  Nf6 {[%clk 0:02:59]} 2. Nf3 {[%clk 0:02:49]}  g6 {[%clk 0:02:57]} 3. Bg5 {[%clk 0:02:49]}  Bg7 {[%clk 0:02:57]} 4. Nbd2 {[%clk 0:02:49]}  d6 {[%clk 0:02:57]} 5. e3 {[%clk 0:02:42]}  O-O {[%clk 0:02:57]} 6. Bc4 {[%clk 0:02:42]}  Nc6 {[%clk 0:02:56]} 7. O-O {[%clk 0:02:39]}  Qe8 {[%clk 0:02:51]} 8. c3 {[%clk 0:02:33]}  e5 {[%clk 0:02:48]} 9. a4 {[%clk 0:02:30]}  a6 {[%clk 0:02:41]} 10. Ba2 {[%clk 0:02:26]}  h6 {[%clk 0:02:40]} 11. Bxf6 {[%clk 0:02:25]}  Bxf6 {[%clk 0:02:40]} 12. Qc2 {[%clk 0:02:26]}  Kh7 {[%clk 0:02:38]} 13. h3 {[%clk 0:02:17]}  Bg7 {[%clk 0:02:37]} 14. Rfe1 {[%clk 0:02:14]}  f5 {[%clk 0:02:34]} 15. dxe5 {[%clk 0:02:10]}  dxe5 {[%clk 0:02:34]} 16. e4 {[%clk 0:02:11]}  f4 {[%clk 0:02:33]} 17. Rad1 {[%clk 0:02:00]}  g5 {[%clk 0:02:32]} 18. Nf1 {[%clk 0:01:49]}  Ne7 {[%clk 0:02:20]} 19. Rd2 {[%clk 0:01:27]}  Ng6 {[%clk 0:02:14]} 20. Red1 {[%clk 0:01:28]}  Qe7 {[%clk 0:02:14]} 21. Qb3 {[%clk 0:01:18]}  h5 {[%clk 0:02:07]} 22. Qb4 {[%clk 0:01:11]}  c5 {[%clk 0:01:50]} 23. Qb6 {[%clk 0:01:03]}  g4 {[%clk 0:01:47]} 24. hxg4 {[%clk 0:01:03]}  hxg4 {[%clk 0:01:47]} 25. N3h2 {[%clk 0:01:04]}  Nh4 {[%clk 0:00:37]} 26. Rd8 {[%clk 0:00:36]}  Rf6 {[%clk 0:00:30]} 27. R1d6 {[%clk 0:00:35]}  Rxd6 {[%clk 0:00:25]} 28. Qxd6 {[%clk 0:00:36]}  Qxd6 {[%clk 0:00:22]} 29. Rxd6 {[%clk 0:00:37]}  b5 {[%clk 0:00:20]} 30. Bd5 {[%clk 0:00:34]}  Ra7 {[%clk 0:00:19]} 31. a5 {[%clk 0:00:34]}  Rc7 {[%clk 0:00:17]} 32. Nd2 {[%clk 0:00:27]}  c4 {[%clk 0:00:17]} 33. Rc6 {[%clk 0:00:20]}  Rxc6 {[%clk 0:00:15]} 34. Bxc6 {[%clk 0:00:21]}  Ng6 {[%clk 0:00:15]} 35. b3 {[%clk 0:00:19]}  Ne7 {[%clk 0:00:14]} 36. Be8 {[%clk 0:00:15]}  b4 {[%clk 0:00:13]} 37. Nxc4 {[%clk 0:00:12]}  bxc3 {[%clk 0:00:13]} 38. Na3 {[%clk 0:00:13]}  Be6 {[%clk 0:00:12]} 39. Ba4 {[%clk 0:00:11]}  Nc8 {[%clk 0:00:12]} 40. b4 {[%clk 0:00:11]}  Nd6 {[%clk 0:00:12]} 41. f3 {[%clk 0:00:08]}  g3 {[%clk 0:00:10]} 42. Nf1 {[%clk 0:00:08]}  Bf8 {[%clk 0:00:10]} 43. Bc2 {[%clk 0:00:03]}  Nc4 {[%clk 0:00:10]} 44. Nxc4 {[%clk 0:00:03]}  Bxc4 {[%clk 0:00:10]} 45. Bd1 {[%clk 0:00:01]}  Bxb4 {[%clk 0:00:10]} 46. Bc2 {[%clk 0:00:01]}  Bxa5 {[%clk 0:00:10]} 0-1


[Site "https://www.chess.com"]

[Event "Titled Tuesday Blitz April 25 Early 2023"]
[White "Wagner, Dennis"]
[Black "Pauly, Carlo"]
[WhiteFideId "24650684"]
[BlackFideId "24673269"]
[WhiteElo "2470"]
[BlackElo "2254"]
[Result "1/2-1/2"]
[Round "07"]
[TimeControl "180+2"]
[Date "2023.04.25"]
[WhiteClock "0:00:20"]
[BlackClock "0:00:13"]

1. c4 {[%clk 0:03:00]}  Nf6 {[%clk 0:02:57]} 2. Nf3 {[%clk 0:03:00]}  g6 {[%clk 0:02:56]} 3. b3 {[%clk 0:02:58]}  Bg7 {[%clk 0:02:56]} 4. Bb2 {[%clk 0:02:59]}  O-O {[%clk 0:02:56]} 5. g3 {[%clk 0:02:59]}  d6 {[%clk 0:02:56]} 6. d4 {[%clk 0:02:59]}  Nc6 {[%clk 0:02:50]} 7. Bg2 {[%clk 0:02:59]}  e5 {[%clk 0:02:49]} 8. dxe5 {[%clk 0:02:32]}  dxe5 {[%clk 0:02:45]} 9. O-O {[%clk 0:02:31]}  Bf5 {[%clk 0:02:31]} 10. Nxe5 {[%clk 0:02:03]}  Qxd1 {[%clk 0:02:26]} 11. Rxd1 {[%clk 0:02:04]}  Ng4 {[%clk 0:02:26]} 12. Nxg4 {[%clk 0:01:25]}  Bxb2 {[%clk 0:02:25]} 13. Nh6+ {[%clk 0:01:26]}  Kg7 {[%clk 0:02:21]} 14. Nxf5+ {[%clk 0:01:26]}  gxf5 {[%clk 0:02:22]} 15. Bxc6 {[%clk 0:01:22]}  bxc6 {[%clk 0:02:17]} 16. Nd2 {[%clk 0:01:22]}  Bxa1 {[%clk 0:02:15]} 17. Rxa1 {[%clk 0:01:23]}  a5 {[%clk 0:02:14]} 18. Nf3 {[%clk 0:01:17]}  a4 {[%clk 0:02:12]} 19. b4 {[%clk 0:01:16]}  Rfd8 {[%clk 0:02:08]} 20. a3 {[%clk 0:01:12]}  Kf6 {[%clk 0:02:03]} 21. Kg2 {[%clk 0:01:11]}  Rd7 {[%clk 0:02:03]} 22. e3 {[%clk 0:00:48]}  Rd3 {[%clk 0:01:54]} 23. Nd4 {[%clk 0:00:48]}  c5 {[%clk 0:01:48]} 24. bxc5 {[%clk 0:00:46]}  Rb8 {[%clk 0:01:47]} 25. Nb5 {[%clk 0:00:40]}  c6 {[%clk 0:01:39]} 26. Nd4 {[%clk 0:00:40]}  Rc3 {[%clk 0:01:32]} 27. Nxc6 {[%clk 0:00:40]}  Rc8 {[%clk 0:01:32]} 28. Nb4 {[%clk 0:00:37]}  Rxc4 {[%clk 0:01:31]} 29. c6 {[%clk 0:00:36]}  Ke5 {[%clk 0:01:27]} 30. Rd1 {[%clk 0:00:36]}  Rc3 {[%clk 0:01:26]} 31. Rd5+ {[%clk 0:00:34]}  Ke6 {[%clk 0:01:25]} 32. Ra5 {[%clk 0:00:33]}  Rxa3 {[%clk 0:01:25]} 33. Ra6 {[%clk 0:00:32]}  Rc7 {[%clk 0:01:17]} 34. Nc2 {[%clk 0:00:29]}  Ra2 {[%clk 0:01:13]} 35. Nd4+ {[%clk 0:00:29]}  Kd5 {[%clk 0:01:13]} 36. Ra5+ {[%clk 0:00:26]}  Kc4 {[%clk 0:01:13]} 37. Rxf5 {[%clk 0:00:20]}  a3 {[%clk 0:01:00]} 38. Ra5 {[%clk 0:00:21]}  Kb4 {[%clk 0:00:48]} 39. Rb5+ {[%clk 0:00:20]}  Ka4 {[%clk 0:00:47]} 40. Rb8 {[%clk 0:00:20]}  Rb2 {[%clk 0:00:44]} 41. Ra8+ {[%clk 0:00:20]}  Kb4 {[%clk 0:00:44]} 42. Rb8+ {[%clk 0:00:17]}  Kc4 {[%clk 0:00:42]} 43. Ra8 {[%clk 0:00:17]}  a2 {[%clk 0:00:42]} 44. Kf3 {[%clk 0:00:16]}  Kc3 {[%clk 0:00:33]} 45. Ke4 {[%clk 0:00:17]}  Kd2 {[%clk 0:00:21]} 46. Kd5 {[%clk 0:00:17]}  Kc1 {[%clk 0:00:20]} 47. Kd6 {[%clk 0:00:17]}  Rc8 {[%clk 0:00:19]} 48. Ra7 {[%clk 0:00:15]}  Kb1 {[%clk 0:00:18]} 49. Kd7 {[%clk 0:00:15]}  Rh8 {[%clk 0:00:17]} 50. c7 {[%clk 0:00:15]}  a1=Q {[%clk 0:00:18]} 51. Rxa1+ {[%clk 0:00:15]}  Kxa1 {[%clk 0:00:18]} 52. c8=Q {[%clk 0:00:15]}  Rxc8 {[%clk 0:00:18]} 53. Kxc8 {[%clk 0:00:16]}  Rxf2 {[%clk 0:00:18]} 54. h4 {[%clk 0:00:17]}  Rg2 {[%clk 0:00:18]} 55. Nf5 {[%clk 0:00:17]}  Rf2 {[%clk 0:00:18]} 56. e4 {[%clk 0:00:17]}  Re2 {[%clk 0:00:17]} 57. Nd6 {[%clk 0:00:17]}  Re3 {[%clk 0:00:16]} 58. Kd7 {[%clk 0:00:17]}  Rxg3 {[%clk 0:00:16]} 59. Nxf7 {[%clk 0:00:16]}  Rg4 {[%clk 0:00:15]} 60. e5 {[%clk 0:00:16]}  Rxh4 {[%clk 0:00:15]} 61. e6 {[%clk 0:00:17]}  Re4 {[%clk 0:00:16]} 62. e7 {[%clk 0:00:16]}  h5 {[%clk 0:00:13]} 63. Ng5 {[%clk 0:00:16]}  Rxe7+ {[%clk 0:00:10]} 64. Kxe7 {[%clk 0:00:17]}  h4 {[%clk 0:00:11]} 65. Nh3 {[%clk 0:00:17]}  Kb2 {[%clk 0:00:11]} 66. Kf6 {[%clk 0:00:18]}  Kc2 {[%clk 0:00:12]} 67. Kg5 {[%clk 0:00:19]}  Kd2 {[%clk 0:00:13]} 68. Kxh4 {[%clk 0:00:20]} 1/2-1/2


[Site "https://www.chess.com"]

[Event "Titled Tuesday Blitz April 25 Early 2023"]
[White "Spata, German"]
[Black "Herman, Daniel"]
[WhiteFideId "113026"]
[BlackFideId "30935008"]
[WhiteElo "2238"]
[BlackElo "1897"]
[Result "1/2-1/2"]
[Round "07"]
[TimeControl "180+2"]
[Date "2023.04.25"]
[WhiteClock "0:00:04"]
[BlackClock "0:00:11"]

1. e4 {[%clk 0:03:00]}  e6 {[%clk 0:02:58]} 2. d3 {[%clk 0:02:58]}  d5 {[%clk 0:02:59]} 3. Nd2 {[%clk 0:02:58]}  c5 {[%clk 0:02:59]} 4. Ngf3 {[%clk 0:02:57]}  Nc6 {[%clk 0:03:00]} 5. g3 {[%clk 0:02:58]}  Bd6 {[%clk 0:03:01]} 6. Bg2 {[%clk 0:02:58]}  Nge7 {[%clk 0:03:01]} 7. O-O {[%clk 0:02:58]}  O-O {[%clk 0:03:02]} 8. c3 {[%clk 0:02:56]}  b5 {[%clk 0:02:53]} 9. exd5 {[%clk 0:02:56]}  exd5 {[%clk 0:02:52]} 10. Nb3 {[%clk 0:02:55]}  Nf5 {[%clk 0:02:20]} 11. d4 {[%clk 0:02:52]}  c4 {[%clk 0:02:19]} 12. Nbd2 {[%clk 0:02:44]}  Be6 {[%clk 0:02:14]} 13. Re1 {[%clk 0:02:44]}  h6 {[%clk 0:02:10]} 14. Nf1 {[%clk 0:02:44]}  Qd7 {[%clk 0:02:08]} 15. Ne3 {[%clk 0:02:42]}  Rae8 {[%clk 0:02:00]} 16. Bd2 {[%clk 0:02:41]}  Nxe3 {[%clk 0:01:53]} 17. Bxe3 {[%clk 0:02:41]}  Bg4 {[%clk 0:01:51]} 18. Qd2 {[%clk 0:02:40]}  Qf5 {[%clk 0:01:45]} 19. Nh4 {[%clk 0:02:30]}  Qh5 {[%clk 0:01:45]} 20. h3 {[%clk 0:02:23]}  Bxh3 {[%clk 0:01:10]} 21. Bxh3 {[%clk 0:02:23]}  g5 {[%clk 0:01:11]} 22. Nf5 {[%clk 0:02:04]}  Bxg3 {[%clk 0:01:11]} 23. Nxg3 {[%clk 0:01:39]}  Qxh3 {[%clk 0:01:09]} 24. Bxg5 {[%clk 0:01:33]}  hxg5 {[%clk 0:01:07]} 25. Qxg5+ {[%clk 0:01:33]}  Kh7 {[%clk 0:01:03]} 26. Rxe8 {[%clk 0:01:21]}  Rxe8 {[%clk 0:01:04]} 27. Qxd5 {[%clk 0:01:21]}  Re6 {[%clk 0:00:47]} 28. Qg2 {[%clk 0:01:10]}  Qxg2+ {[%clk 0:00:39]} 29. Kxg2 {[%clk 0:01:10]}  Ne7 {[%clk 0:00:39]} 30. Kf1 {[%clk 0:00:59]}  Kg6 {[%clk 0:00:37]} 31. Re1 {[%clk 0:00:57]}  Nd5 {[%clk 0:00:34]} 32. Rxe6+ {[%clk 0:00:54]}  fxe6 {[%clk 0:00:35]} 33. Ke2 {[%clk 0:00:53]}  Nf4+ {[%clk 0:00:31]} 34. Kd2 {[%clk 0:00:52]}  Nd3 {[%clk 0:00:30]} 35. b3 {[%clk 0:00:46]}  cxb3 {[%clk 0:00:22]} 36. axb3 {[%clk 0:00:46]}  Nxf2 {[%clk 0:00:22]} 37. Ke3 {[%clk 0:00:39]}  Nd1+ {[%clk 0:00:21]} 38. Kd3 {[%clk 0:00:39]}  a5 {[%clk 0:00:20]} 39. Ne4 {[%clk 0:00:36]}  a4 {[%clk 0:00:20]} 40. Kc2 {[%clk 0:00:32]}  Ne3+ {[%clk 0:00:18]} 41. Kb2 {[%clk 0:00:31]}  axb3 {[%clk 0:00:18]} 42. Kxb3 {[%clk 0:00:31]}  Nd5 {[%clk 0:00:16]} 43. Nd6 {[%clk 0:00:27]}  Nc7 {[%clk 0:00:15]} 44. Kb4 {[%clk 0:00:27]}  Nd5+ {[%clk 0:00:15]} 45. Kb3 {[%clk 0:00:26]}  Nc7 {[%clk 0:00:15]} 46. Ne4 {[%clk 0:00:16]}  Kf5 {[%clk 0:00:15]} 47. Nc5 {[%clk 0:00:15]}  e5 {[%clk 0:00:13]} 48. Kb4 {[%clk 0:00:11]}  exd4 {[%clk 0:00:13]} 49. cxd4 {[%clk 0:00:11]}  Kf4 {[%clk 0:00:11]} 50. Ne6+ {[%clk 0:00:04]}  Nxe6 {[%clk 0:00:11]} 51. Kxb5 {[%clk 0:00:04]}  Nxd4+ {[%clk 0:00:11]} 1/2-1/2


[Site "https://www.chess.com"]